bitfinex-derivatives/quotes_SOLF0:USTF0_20240815
["timestamp","ask_amount","ask_price","bid_price","bid_amount"]
[1723746936415,30.99,138.59,138.47,30.99]
[1723746936815,30.99,138.59,138.45,3.53775384]
[1723746936816,0.05292065,138.52,138.51,3.6093]
[1723746937017,0.05292065,138.52,138.45,32.4906]
[1723746937209,0.05292065,138.52,138.48,11.84]
[1723746937402,30.99,138.57,138.48,11.84]
[1723746937403,3.6083,138.55,138.49,3.6098]
[1723746937615,30.99,138.57,138.45,32.4906]
[1723746937812,30.99,138.57,138.44,2.9541]
[1723746937813,30.99,138.52,138.49,0.04894271]
[1723746938017,3.6095,138.5,138.49,0.04894271]
[1723746938701,3.66296003,138.51,138.49,0.04894271]
[1723746938912,0.05356003,138.51,138.49,0.04894271]
[1723746939314,30.99,138.59,138.49,0.04894271]
[1723746939510,30.99,138.56,138.45,30.99]
[1723746939705,3.6079,138.57,138.52,3.609]
[1723746939909,30.99,138.6,138.48,30.99]
[1723746940406,30.99,138.63,138.5,30.99]
[1723746940609,0.04670973,138.55,138.53,0.05301216]
[1723746941107,30.99,138.61,138.53,0.05301216]
[1723746941412,30.99,138.61,138.44,18.36821371]
[1723746941413,3.6086,138.54,138.49,3.6095]
[1723746941602,30.99,138.58,138.46,42.83]
[1723746941806,0.05129894,138.55,138.48,30.99]
[1723746942013,0.05129894,138.55,138.51,30.99]
[1723746942411,0.05129894,138.55,138.44,2.9541]
[1723746942412,0.05129894,138.55,138.28,7.00173388]
[1723746942605,0.05129894,138.55,138.34,30.99]
[1723746942606,30.99,138.46,138.34,30.99]
[1723746943010,3.6113,138.44,138.39,3.6123]
[1723746943204,30.99,138.48,138.36,30.99]
[1723746943909,0.0533671,138.43,138.41,0.04792792]
[1723746944115,3.6116,138.42,138.41,0.04792792]
[1723746944415,30.99,138.46,138.41,0.04792792]
[1723746944612,30.99,138.48,138.41,0.04792792]
[1723746944821,62.02957994,138.43,138.31,1.567]
[1723746945007,0.04957994,138.43,138.31,1.567]
[1723746945212,30.99,138.37,138.28,3.68307114]
[1723746945520,3.55518395,138.42,138.28,3.68307114]
[1723746945817,30.99,138.33,138.28,3.68307114]
[1723746946116,3.6143,138.32,138.28,3.68307114]
[1723746946312,31.03839233,138.36,138.28,3.68307114]
[1723746946611,30.99,138.36,138.29,0.05312064]
[1723746946814,3.6137,138.34,138.29,3.66792064]
[1723746947012,1.0,138.41,138.29,0.05312064]
[1723746947209,0.05131819,138.33,138.29,0.05312064]
[1723746947409,0.05131819,138.33,138.28,3.68307114]
[1723746947716,3.6134,138.36,138.3,3.6148]
[1723746947911,0.05047553,138.32,138.29,0.05283521]
[1723746948109,0.05047553,138.32,138.28,3.68307114]
[1723746948313,30.99,138.31,138.28,3.68307114]
[1723746948511,30.99,138.31,138.29,0.05081053]
[1723746949212,0.05047553,138.32,138.29,0.05081053]
[1723746949805,30.99,138.31,138.29,0.05081053]
[1723746950206,0.05047553,138.32,138.29,0.05081053]
[1723746951918,30.99,138.4,138.29,1.33091053]
[1723746952514,30.99,138.38,138.29,1.33091053]
[1723746952814,30.99,138.4,138.29,1.2801]
[1723746953116,30.99,138.42,138.29,44.1301]
[1723746953330,0.04855942,138.36,138.33,0.04668322]
[1723746953714,30.99,138.45,138.32,30.99]
[1723746954027,30.99,138.47,138.36,30.99]
[1723746954517,30.99,138.47,138.34,30.99]
[1723746954709,3.6112,138.44,138.38,3.6126]
[1723746954912,30.99,138.47,138.34,30.99]
[1723746955113,0.05236431,138.42,138.39,0.05254431]
[1723746956415,30.99,138.41,138.39,0.05254431]
[1723746956720,3.6121,138.4,138.39,0.05254431]
[1723746956919,30.99,138.41,138.39,0.05254431]
[1723746957325,34.602,138.41,138.39,0.05254431]
[1723746957527,30.99,138.41,138.39,0.05254431]
[1723746957928,3.6121,138.4,138.39,0.00194431]
[1723746960118,30.99,138.41,138.32,11.86]
[1723746960427,3.6125,138.39,138.35,3.6134]
[1723746960723,30.99,138.43,138.35,3.6134]
[1723746961021,30.99,138.43,138.32,11.86]
[1723746961320,0.05221883,138.4,138.38,0.04907117]
[1723746961518,3.6124,138.39,138.38,0.04907117]
[1723746962827,0.05221883,138.4,138.38,0.04907117]
[1723746966027,0.05221883,138.4,138.38,3.66157117]
[1723746966223,0.05221883,138.4,138.38,0.04907117]
[1723746966827,0.05221883,138.4,138.39,3.6124]
[1723746967120,0.05221883,138.4,138.38,0.04907117]
[1723746967121,30.99,138.48,138.38,0.04907117]
[1723746967323,30.99,138.51,138.39,34.64064255]
[1723746967521,30.99,138.51,138.4,1.3762]
[1723746967830,30.99,138.5,138.41,11.56]
[1723746968131,30.99,138.46,138.41,11.56]
[1723746968425,30.99,138.46,138.44,0.05520427]
[1723746969123,3.6108,138.45,138.44,0.05520427]
[1723746969323,0.05315465,138.47,138.44,0.05520427]
[1723746971531,3.6108,138.45,138.44,0.05520427]
[1723746972828,0.05315465,138.47,138.44,0.05520427]
[1723746973223,3.6108,138.45,138.44,0.05520427]
[1723746974133,0.05315465,138.47,138.44,0.05520427]
[1723746974134,3.6107,138.46,138.44,0.05520427]
[1723746974332,0.05315465,138.47,138.44,0.05520427]
[1723746974831,34.599,138.53,138.44,0.05520427]
[1723746975227,34.599,138.53,138.48,3.6099]
[1723746975431,50.35497392,138.56,138.38,28.88]
[1723746975627,30.99,138.4,138.31,2.6068]
[1723746975936,30.99,138.5,138.31,2.6068]
[1723746975937,30.99,138.38,138.31,2.6068]
[1723746976129,0.04924036,138.37,138.34,0.04845917]
[1723746976830,30.99,138.43,138.34,0.04845917]
[1723746977026,3.6128,138.38,138.34,0.04845917]
[1723746977234,7.2183,138.52,138.35,30.99]
[1723746977427,30.99,138.47,138.35,30.99]
[1723746977929,30.99,138.47,138.32,42.55]
[1723746978338,0.05044584,138.42,138.4,0.04651716]
[1723746978832,31.04044584,138.42,138.4,0.04651716]
[1723746979049,30.99,138.42,138.4,0.04651716]
[1723746979333,30.99,138.42,138.32,11.56]
[1723746979334,3.613,138.37,138.32,11.56]
[1723746979533,30.99,138.38,138.32,11.56]
[1723746979738,30.99,138.36,138.31,2.6068]
[1723746980033,30.99,138.38,138.31,2.6068]
[1723746980236,30.99,138.43,138.31,33.5968]
[1723746980429,30.99,138.45,138.34,30.99]
[1723746980628,30.99,138.45,138.34,46.16560621]
[1723746980824,3.6115,138.43,138.37,3.6127]
[1723746981031,30.99,138.45,138.37,3.6127]
[1723746981525,0.05012608,138.41,138.34,11.56]
[1723746982135,3.66202608,138.41,138.4,0.05303136]
[1723746982330,0.05012608,138.41,138.4,0.05303136]
[1723746982734,0.05012608,138.41,138.34,42.55]
[1723746983132,3.6124,138.4,138.39,0.04694355]
[1723746983638,31.04012608,138.41,138.32,1.3141]
[1723746983839,31.04012608,138.41,138.38,0.04975208]
[1723746984231,3.6126,138.39,138.34,3.6137]
[1723746984426,3.6126,138.39,138.31,2.6068]
[1723746984427,30.99,138.39,138.38,0.05017758]
[1723746984741,3.6135,138.35,138.31,6.2213]
[1723746985235,30.99,138.39,138.31,2.6068]
[1723746985438,30.99,138.39,138.32,0.05218805]
[1723746985439,3.6138,138.34,138.32,0.05218805]
[1723746985834,30.99,138.57,138.32,0.05218805]
[1723746986040,30.99,138.47,138.35,30.99]
[1723746986536,30.99,138.49,138.38,30.99]
[1723746986738,30.99,138.47,138.35,30.99]
[1723746986932,30.99,138.45,138.35,30.99]
[1723746987636,3.6122,138.4,138.36,3.613]
[1723746987937,3.6122,138.4,138.39,0.05287708]
[1723746988138,3.612,138.41,138.39,0.05287708]
[1723746988330,0.04669598,138.42,138.39,0.05287708]
[1723746989335,0.04669598,138.42,138.33,1.3379]
[1723746989336,30.99,138.41,138.28,3.68307114]
[1723746989544,30.99,138.39,138.28,7.23964909]
[1723746989737,3.6138,138.34,138.29,3.6149]
[1723746989937,30.99,138.39,138.28,7.35016014]
[1723746990131,30.99,138.39,138.28,3.68307114]
[1723746990335,30.99,138.39,138.31,6.2212]
[1723746990544,30.99,138.39,138.31,2.6068]
[1723746990743,0.04873189,138.36,138.34,0.05453922]
[1723746991043,3.6135,138.35,138.34,0.05453922]
[1723746992240,0.04873189,138.36,138.34,0.05453922]
[1723746993244,3.6135,138.35,138.34,0.05453922]
[1723746994438,30.99,138.43,138.34,0.05453922]
[1723746994939,30.99,138.43,138.36,3.6131]
[1723746995146,30.99,138.43,138.33,30.99]
[1723746995341,3.6107,138.46,138.37,30.99]
[1723746995541,30.99,138.51,138.38,11.14]
[1723746995734,0.04571759,138.43,138.4,31.03975812]
[1723746996045,30.99,138.51,138.41,1.3176]
[1723746996238,30.99,138.51,138.41,2.6397]
[1723746997343,0.0553753,138.47,138.45,0.0505394]
[1723746998437,3.6106,138.46,138.45,0.0505394]
[1723746998643,0.0553753,138.47,138.45,0.0505394]
[1723746999037,3.6099,138.49,138.45,0.0505394]
[1723746999346,30.99,138.53,138.45,0.0505394]
[1723746999347,30.99,138.56,138.45,0.0505394]
[1723746999640,30.99,138.53,138.45,0.0505394]
[1723746999845,30.99,138.51,138.41,2.6397]
[1723747000051,3.6102,138.48,138.43,3.6113]
[1723747000348,30.99,138.51,138.41,2.6397]
[1723747000541,0.04700203,138.47,138.45,0.04662632]
[1723747000939,30.99,138.57,138.45,0.04662632]
[1723747001346,3.6097,138.5,138.45,0.04662632]
[1723747001541,3.6097,138.5,138.42,30.99]
[1723747001847,3.6094,138.51,138.45,3.6108]
[1723747002046,0.05274405,138.47,138.45,0.04668279]
[1723747002439,30.99,138.54,138.42,30.99]
[1723747002745,0.04947759,138.47,138.45,0.04896561]
[1723747003049,30.99,138.47,138.28,3.68307114]
[1723747003340,30.99,138.47,138.36,1.3578]
[1723747003736,3.6121,138.41,138.36,1.3578]
[1723747003940,30.99,138.5,138.36,36.01337778]
[1723747004144,0.0525874,138.4,138.37,0.05009886]
[1723747004444,30.99,138.5,138.36,32.3478]
[1723747004445,3.6107,138.46,138.4,3.6121]
[1723747004635,30.99,138.5,138.38,30.99]
[1723747004843,30.99,138.5,138.36,1.3578]
[1723747005035,30.99,138.45,138.36,1.3578]
[1723747005746,0.04606215,138.42,138.39,0.05412154]
[1723747006251,3.6121,138.41,138.39,0.05412154]
[1723747007247,0.04606215,138.42,138.39,0.05412154]
[1723747008151,30.99,138.52,138.42,3.6116]
[1723747008347,30.99,138.52,138.39,0.05412154]
[1723747008547,3.6101,138.48,138.41,30.99]
[1723747008851,30.99,138.52,138.42,11.14]
[1723747009245,30.99,138.52,138.42,14.7516]
[1723747009649,3.6105,138.47,138.46,0.04703203]
[1723747010245,30.99,138.52,138.46,0.04703203]
[1723747010246,3.6102,138.48,138.46,0.04703203]
[1723747010849,30.99,138.54,138.46,0.04703203]
[1723747011350,3.6092,138.52,138.44,1.2728]
[1723747011745,3.6092,138.52,138.49,0.04876987]
[1723747012045,30.99,138.54,138.49,0.04876987]
[1723747012543,30.99,138.57,138.49,0.04876987]
[1723747012745,30.99,138.59,138.48,30.99]
[1723747012944,30.99,138.59,138.49,1.3102]
[1723747013251,30.99,138.55,138.52,0.05050061]
[1723747013643,3.6088,138.53,138.49,4.9199]
[1723747013844,11.12,138.58,138.49,1.3102]
[1723747014053,42.11,138.59,138.52,0.05482288]
[1723747014345,30.99,138.59,138.53,3.6087]
[1723747014751,30.99,138.59,138.52,0.05482288]
[1723747014752,3.6079,138.57,138.54,3.6083]
[1723747014943,30.99,138.57,138.52,0.05482288]
[1723747015144,30.99,138.57,138.49,1.3102]
[1723747015347,3.6085,138.54,138.53,0.04612388]
[1723747015854,3.6084,138.55,138.53,0.04612388]
[1723747016951,3.6085,138.54,138.53,0.04612388]
[1723747017856,30.99,138.55,138.45,3.6106]
[1723747018153,30.99,138.51,138.44,1.2786]
[1723747018456,30.99,138.51,138.39,3.6123]
[1723747018457,30.99,138.45,138.39,3.6123]
[1723747018752,30.99,138.45,138.35,1.3849]
[1723747018956,11.12,138.47,138.37,30.99]
[1723747019157,11.12,138.47,138.35,1.3849]
[1723747019158,0.04612388,138.43,138.41,0.05524898]
[1723747019450,30.99,138.51,138.41,0.05524898]
[1723747019641,30.99,138.51,138.39,30.99]
[1723747019841,3.6108,138.46,138.38,10.92]
[1723747020047,30.99,138.49,138.42,3.6115]
[1723747020249,30.99,138.49,138.38,10.92]
[1723747020450,30.99,138.47,138.36,39.78]
[1723747020845,30.99,138.5,138.44,0.05533887]
[1723747021047,30.99,138.5,138.39,30.99]
[1723747021350,30.99,138.52,138.46,0.04730912]
[1723747021544,30.99,138.52,138.47,3.6102]
[1723747021744,30.99,138.55,138.44,30.99]
[1723747021949,30.99,138.55,138.48,0.05042315]
[1723747022659,30.99,138.57,138.48,0.05042315]
[1723747023049,30.99,138.57,138.46,34.64926655]
[1723747023253,30.99,138.59,138.49,30.99]
[1723747023449,30.99,138.59,138.51,0.0543154]
[1723747023653,30.99,138.57,138.51,0.0543154]
[1723747023857,30.99,138.59,138.51,0.0543154]
[1723747024061,30.99,138.59,138.53,3.6086]
[1723747024358,30.99,138.59,138.48,3.5244177]
[1723747024560,30.99,138.59,138.55,0.04745331]
[1723747024748,30.99,138.59,138.53,3.6087]
[1723747024749,3.6077,138.58,138.49,30.99]
[1723747025059,30.99,138.59,138.47,1.2656]
[1723747025248,30.99,138.57,138.56,0.05460136]
[1723747025562,30.99,138.57,138.51,3.6091]
[1723747025756,30.99,138.57,138.55,0.05234261]
[1723747025948,3.608,138.56,138.55,0.05234261]
[1723747026148,30.99,138.57,138.47,1.2656]
[1723747026449,28.86,138.65,138.5,30.99]
[1723747026450,30.99,138.62,138.5,30.99]
[1723747026652,30.99,138.62,138.56,3.6078]
[1723747026859,30.99,138.62,138.47,1.2656]
[1723747026860,30.99,138.62,138.51,1.3103286]
[1723747027058,3.6076,138.58,138.54,3.6083]
[1723747027259,30.99,138.62,138.51,1.2566]
[1723747027558,30.99,138.62,138.55,0.04622409]
[1723747027957,30.99,138.59,138.55,0.04622409]
[1723747028457,30.99,138.59,138.51,1.2566]
[1723747028758,30.99,138.59,138.56,0.04609316]
[1723747029057,3.6068,138.61,138.56,0.04609316]
[1723747029254,30.99,138.66,138.58,3.6074]
[1723747029560,30.99,138.63,138.56,0.04609316]
[1723747029860,30.99,138.59,138.48,28.86]
[1723747030052,30.99,138.59,138.58,0.05546662]
[1723747030253,30.99,138.59,138.48,39.38]
[1723747030447,30.99,138.59,138.57,0.0540118]
[1723747030647,3.6075,138.58,138.48,39.38]
[1723747030860,30.99,138.59,138.54,3.6082]
[1723747031057,30.99,138.57,138.48,39.38]
[1723747031258,3.6086,138.54,138.5,3.6093]
[1723747031561,3.6086,138.54,138.51,0.05300185]
[1723747031759,30.99,138.59,138.51,0.05300185]
[1723747032057,30.99,138.59,138.49,30.99]
[1723747032362,30.99,138.61,138.54,0.05382502]
[1723747033163,30.99,138.64,138.54,0.05382502]
[1723747033362,3.6065,138.62,138.59,3.607]
[1723747033659,30.99,138.66,138.53,34.61297618]
[1723747033863,30.99,138.66,138.59,0.04789039]
[1723747034155,30.99,138.64,138.59,0.04789039]
[1723747034754,7.2076,138.73,138.59,0.04789039]
[1723747034952,30.99,138.74,138.61,30.99]
[1723747035149,30.99,138.74,138.63,30.99]
[1723747035358,30.99,138.76,138.66,0.05119142]
[1723747035551,30.99,138.72,138.66,0.05119142]
[1723747035756,3.6045,138.7,138.66,3.6052]
[1723747035963,30.99,138.74,138.58,10.52]
[1723747036151,30.99,138.72,138.59,30.99]
[1723747036462,30.99,138.74,138.68,0.05235426]
[1723747036855,3.6043,138.71,138.61,34.56081392]
[1723747037256,30.99,138.76,138.7,0.0500012]
[1723747037451,30.99,138.76,138.61,34.56081392]
[1723747037452,30.99,138.73,138.66,3.6052]
[1723747037647,30.99,138.76,138.61,34.56081392]
[1723747037855,30.99,138.76,138.72,0.04953301]
[1723747038256,30.99,138.76,138.66,30.99]
[1723747038463,30.99,138.76,138.73,0.05022908]
[1723747038659,3.6035,138.74,138.73,0.05022908]
[1723747038864,30.99,138.76,138.66,30.99]
[1723747039069,30.99,138.76,138.73,0.05007981]
[1723747039357,30.99,138.74,138.67,3.6049]
[1723747039565,30.99,138.74,138.73,0.05140344]
[1723747039860,30.99,138.74,138.68,3.6048]
[1723747040054,30.99,138.76,138.72,0.04747595]
[1723747040258,30.99,138.76,138.63,41.11]
[1723747040562,30.99,138.76,138.73,0.04946426]
[1723747040763,3.6033,138.74,138.73,0.04946426]
[1723747040965,30.99,138.76,138.7,3.6042]
[1723747041162,30.99,138.76,138.72,0.04961776]
[1723747041361,30.99,138.81,138.72,0.04961776]
[1723747041559,30.99,138.81,138.68,30.99]
[1723747041753,30.99,138.81,138.75,0.0534805]
[1723747041958,30.99,138.79,138.75,0.0534805]
[1723747042365,3.6028,138.76,138.75,0.0534805]
[1723747043371,3.6027,138.77,138.75,0.0534805]
[1723747044057,3.6024,138.78,138.75,0.0534805]
[1723747044262,30.99,138.88,138.75,31.0434805]
[1723747044462,30.99,138.88,138.81,3.6015]
[1723747044661,30.99,138.9,138.78,30.99]
[1723747044970,30.99,138.9,138.83,3.6007]
[1723747045267,10.12,138.93,138.83,3.6007]
[1723747045268,30.99,138.93,138.83,0.04997936]
[1723747045657,30.99,138.9,138.83,0.04997936]
[1723747045864,30.99,138.86,138.77,11.4001]
[1723747046061,30.99,138.86,138.78,3.6021]
[1723747046267,30.99,138.86,138.74,10.12]
[1723747046767,3.6014,138.82,138.79,3.6018]
[1723747046962,1.0,138.89,138.74,10.12]
[1723747046963,30.99,138.88,138.77,30.99]
[1723747047359,30.99,138.9,138.77,30.99]
[1723747047663,30.99,138.93,138.82,30.99]
[1723747047868,30.99,138.95,138.82,30.99]
[1723747048272,3.5995,138.89,138.81,10.12]
[1723747048472,30.99,138.95,138.87,0.04885967]
[1723747048977,10.12,138.97,138.84,30.99]
[1723747049269,41.11,138.97,138.9,0.05259215]
[1723747049773,30.99,138.99,138.9,0.05259215]
[1723747049970,3.598,138.95,138.91,3.5987]
[1723747050268,38.1805,139.06,138.9,0.05259215]
[1723747050269,3.59900619,139.11,138.9,9.74]
[1723747050470,3.5967,139.0,138.96,3.5974]
[1723747050669,3.5967,139.0,138.84,30.99]
[1723747050670,30.99,138.97,138.76,7.2051]
[1723747050871,30.99,138.93,138.92,0.04883547]
[1723747051168,34.5884,138.93,138.92,0.04883547]
[1723747051368,30.99,138.93,138.81,32.3457]
[1723747051770,3.5993,138.9,138.84,3.6007]
[1723747051972,30.99,138.91,138.8,2.601]
[1723747052173,3.5999,138.87,138.86,0.04648397]
[1723747052579,3.5999,138.87,138.8,2.601]
[1723747052580,30.99,138.89,138.77,1.3557]
[1723747052763,3.6014,138.82,138.78,3.6021]
[1723747052967,30.99,138.87,138.77,1.3557]
[1723747053166,1.2421,138.99,138.79,30.99]
[1723747053372,3.6002,138.86,138.82,3.6011]
[1723747053569,9.74,138.95,138.81,30.99]
[1723747053570,40.73,138.95,138.81,30.99]
[1723747053777,3.5998,138.88,138.84,3.6006]
[1723747054167,30.99,138.95,138.81,30.99]
[1723747054382,3.5997,138.88,138.83,30.99]
[1723747054674,0.04648397,138.85,138.83,0.05320724]
[1723747054873,0.04648397,138.85,138.84,3.6007]
[1723747055074,0.04648397,138.85,138.83,0.05320724]
[1723747055371,0.04648397,138.85,138.81,30.99]
[1723747055372,3.6006,138.85,138.81,3.6013]
[1723747055574,30.99,138.88,138.77,1.3557]
[1723747055780,0.04648397,138.85,138.83,0.04865682]
[1723747055974,0.04648397,138.85,138.83,3.64955682]
[1723747056175,0.04648397,138.85,138.83,0.04865682]
[1723747056370,30.99,138.94,138.84,30.99]
[1723747056873,3.6007,138.84,138.83,0.05381082]
[1723747057077,30.99,138.9,138.77,1.3557]
[1723747057472,0.04648397,138.85,138.82,0.05552897]
[1723747057981,30.99,138.85,138.74,30.99]
[1723747058176,31.03648397,138.85,138.82,0.04848476]
[1723747058473,3.6014,138.82,138.78,3.6021]
[1723747058683,3.6014,138.82,138.74,34.65903047]
[1723747058874,0.04648397,138.85,138.76,30.99]
[1723747059074,0.04648397,138.85,138.79,0.05225523]
[1723747059277,9.74,138.89,138.79,0.05225523]
[1723747059474,0.04648397,138.83,138.79,0.05225523]
[1723747059674,0.04648397,138.83,138.74,34.59096542]
[1723747059876,0.04648397,138.83,138.8,0.05286148]
[1723747060188,3.6014,138.82,138.8,0.05286148]
[1723747060478,3.6014,138.82,138.78,3.6022]
[1723747060674,3.6014,138.82,138.8,0.04701423]
[1723747060876,0.04648397,138.83,138.73,12.291]
[1723747061074,30.99,138.8,138.67,34.66717239]
[1723747061275,30.99,138.8,138.67,30.99]
[1723747061679,30.99,138.8,138.64,3.7958]
[1723747061680,30.99,138.77,138.65,30.99]
[1723747061878,3.6046,138.7,138.66,3.6052]
[1723747062081,30.99,138.75,138.64,3.7958]
[1723747062276,9.74,138.75,138.65,30.99]
[1723747062477,0.05465446,138.72,138.69,0.04668571]
[1723747062983,3.6043,138.7,138.69,0.04668571]
[1723747063678,3.6054,138.67,138.61,40.73]
[1723747063984,0.05465446,138.72,138.61,40.73]
[1723747064279,30.99,138.73,138.61,30.99]
[1723747064280,3.6053,138.67,138.61,30.99]
[1723747064473,30.99,138.73,138.59,4.97254386]
[1723747064474,30.99,138.71,138.59,1.3692]
[1723747064678,9.74,138.75,138.59,1.3692]
[1723747064679,30.99,138.68,138.59,1.3692]
[1723747065077,40.35,138.68,138.59,4.9762]
[1723747065273,0.04902362,138.66,138.64,0.05502342]
[1723747065483,0.04902362,138.66,138.65,30.99]
[1723747065778,30.99,138.78,138.65,30.99]
[1723747065979,3.604,138.72,138.65,30.99]
[1723747066181,30.99,138.76,138.66,3.6052]
[1723747066482,3.6058,138.65,138.59,1.3692]
[1723747066788,30.99,138.71,138.63,3.6061]
[1723747067080,40.35,138.73,138.63,3.6061]
[1723747067279,40.35,138.73,138.64,3.6059]
[1723747067472,40.35,138.73,138.61,0.05186612]
[1723747067872,40.35,138.73,138.62,3.6063]
[1723747068082,40.35,138.73,138.61,0.05186612]
[1723747068083,3.6053,138.67,138.6,30.99]
[1723747068290,3.6053,138.67,138.64,3.6059]
[1723747068474,3.6053,138.67,138.6,30.99]
[1723747068681,0.05270899,138.69,138.6,40.35]
[1723747068880,3.6052,138.67,138.66,0.04810108]
[1723747069881,3.6055,138.66,138.62,3.6063]
[1723747070076,30.99,138.66,138.57,2.5667]
[1723747070382,30.99,138.64,138.53,32.2576]
[1723747070576,30.99,138.64,138.53,41.6176]
[1723747070779,30.99,138.66,138.55,30.99]
[1723747071182,0.04930003,138.6,138.57,0.05072634]
[1723747071681,30.99,138.64,138.53,2.5377]
[1723747072079,0.05009939,138.6,138.53,2.5377]
[1723747072284,0.05009939,138.6,138.57,0.05350378]
[1723747072782,3.6073,138.59,138.57,0.05350378]
[1723747073183,0.05009939,138.6,138.57,0.05350378]
[1723747073483,0.05009939,138.6,138.59,3.6072]
[1723747074386,0.05009939,138.6,138.59,34.5972]
[1723747075484,30.99,138.73,138.59,39.99]
[1723747075676,37.82,138.74,138.62,30.99]
[1723747075985,3.6051,138.67,138.63,3.606]
[1723747076386,3.605,138.68,138.64,3.6058]
[1723747077386,0.04106089,138.66,138.64,3.65406399]
[1723747077686,0.04106089,138.66,138.65,34.5956]
[1723747078085,9.0,138.79,138.65,30.99]
[1723747078281,30.99,138.78,138.65,32.3313]
[1723747078788,30.99,138.78,138.66,1.3443]
[1723747078992,30.99,138.76,138.66,1.3443]
[1723747079187,30.99,138.74,138.65,1.3413]
[1723747079383,30.99,138.74,138.71,0.04647427]
[1723747079578,30.99,138.76,138.71,0.04647427]
[1723747079783,3.6044,138.7,138.67,3.6051]
[1723747079984,30.99,138.76,138.72,0.05214859]
[1723747080184,3.6036,138.73,138.72,0.05214859]
[1723747080386,30.99,138.76,138.65,1.3413]
[1723747080689,3.6038,138.72,138.71,0.04988691]
[1723747081191,9.0,138.79,138.71,0.04988691]
[1723747081487,30.99,138.77,138.71,0.04988691]
[1723747081890,3.6037,138.73,138.71,0.04988691]
[1723747082082,30.99,138.75,138.71,0.04988691]
[1723747082285,3.6038,138.72,138.71,0.04988691]
[1723747082691,30.99,138.78,138.71,0.04988691]
[1723747083094,9.0,138.79,138.71,0.04988691]
[1723747083391,30.99,138.83,138.71,31.03988691]
[1723747083597,9.0,138.84,138.71,31.03988691]
[1723747083791,9.0,138.84,138.71,30.99]
[1723747083978,9.0,138.84,138.7,3.66869653]
[1723747083979,3.6022,138.79,138.73,30.99]
[1723747084183,9.0,138.84,138.76,0.05028173]
[1723747084584,30.99,138.77,138.65,32.3313]
[1723747084783,30.99,138.72,138.59,30.99]
[1723747084994,3.6049,138.68,138.64,3.6057]
[1723747085387,30.99,138.72,138.6,1.2901]
[1723747085689,30.99,138.72,138.6,10.2901]
[1723747085896,0.04725562,138.67,138.65,0.04755981]
[1723747086191,7.2005,138.86,138.66,30.99]
[1723747086395,30.99,138.81,138.67,1.2635]
[1723747086587,30.99,138.85,138.67,1.2635]
[1723747086588,30.99,138.76,138.67,1.2635]
[1723747087090,30.99,138.74,138.62,39.99]
[1723747087388,30.99,138.76,138.64,30.99]
[1723747087592,30.99,138.76,138.7,0.05059172]
[1723747088389,3.6041,138.71,138.7,0.05059172]
[1723747088590,30.99,138.78,138.7,0.05059172]
[1723747088998,3.6038,138.73,138.69,3.6044]
[1723747089595,3.6034,138.74,138.7,0.0464112]
[1723747089990,30.99,138.78,138.7,0.0464112]
[1723747090292,9.0,138.79,138.7,0.0464112]
[1723747090293,30.99,138.76,138.7,0.0464112]
[1723747090791,9.0,138.79,138.61,1.2635]
[1723747090792,30.99,138.71,138.61,10.2635]
[1723747090991,30.99,138.71,138.61,11.6512]